bitfinex/quotes_BTCUSD_20241119
["timestamp","ask_amount","ask_price","bid_price","bid_amount"]
[1732022643034,0.011,92270.0,92269.0,0.2741031]
[1732022643269,0.011,92270.0,92269.0,0.3941031]
[1732022643514,0.0004,92289.0,92288.0,0.128356]
[1732022643776,0.0004,92289.0,92288.0,0.23941855]
[1732022644021,0.0017532,92297.0,92296.0,0.128347]
[1732022644254,0.1627251,92305.0,92304.0,0.108337]
[1732022644460,0.216633,92322.0,92308.0,0.108332]
[1732022644673,0.1627251,92321.0,92308.0,0.108332]
[1732022644930,0.108318,92321.0,92308.0,0.108332]
[1732022645171,0.00541467,92320.0,92308.0,0.108332]
[1732022645395,0.216622,92327.0,92308.0,0.108332]
[1732022645639,0.00541464,92326.0,92308.0,0.108332]
[1732022645868,0.00541464,92325.0,92308.0,0.108332]
[1732022646165,0.00541464,92324.0,92308.0,0.108332]
[1732022646398,0.5409,92328.0,92308.0,0.108332]
[1732022646614,0.5409,92328.0,92308.0,0.21955883]
[1732022646853,0.108319,92320.0,92308.0,0.21939455]
[1732022647079,0.5409,92328.0,92308.0,0.21939455]
[1732022647080,0.108316,92323.0,92308.0,0.21939455]
[1732022647521,0.108316,92323.0,92310.0,0.002]
[1732022647522,0.0214304,92323.0,92310.0,0.002]
[1732022647741,0.108315,92324.0,92317.0,0.108322]
[1732022647948,0.108315,92324.0,92316.0,0.108322]
[1732022648217,0.5409,92328.0,92310.0,0.1647251]
[1732022648422,0.216613,92331.0,92319.0,0.108319]
[1732022648657,0.5409,92338.0,92320.0,0.1647251]
[1732022648862,0.1,92342.0,92328.0,0.108309]
[1732022649086,0.1627251,92342.0,92328.0,0.108309]
[1732022649315,0.108298,92338.0,92328.0,0.108309]
[1732022649522,0.04332,92340.0,92328.0,0.108309]
[1732022649731,0.04332,92340.0,92321.0,0.294135]
[1732022649732,0.216607,92333.0,92321.0,0.0775]
[1732022650006,0.04332,92340.0,92307.0,0.185434]
[1732022650007,0.108311,92326.0,92307.0,0.185434]
[1732022650271,0.108311,92326.0,92301.0,0.1627251]
[1732022650272,0.108328,92312.0,92311.0,0.1627251]
[1732022650691,0.1,92320.0,92301.0,0.1627251]
[1732022650921,0.216672,92306.0,92301.0,0.1627251]
[1732022651140,0.10906255,92319.0,92304.0,0.108337]
[1732022651141,0.108327,92313.0,92304.0,0.108337]
[1732022651353,0.5409,92318.0,92301.0,0.1627251]
[1732022651576,0.108323,92316.0,92308.0,0.108332]
[1732022651780,0.108323,92316.0,92301.0,0.1627251]
[1732022652003,0.757542,92318.0,92301.0,0.1627251]
[1732022652229,0.757542,92318.0,92303.0,0.216677]
[1732022652230,0.108326,92314.0,92303.0,0.216677]
[1732022652702,0.216647,92316.0,92300.0,0.216684]
[1732022652900,0.108326,92314.0,92302.0,0.1627251]
[1732022653144,0.108326,92314.0,92307.0,0.108333]
[1732022653347,0.757543,92318.0,92310.0,0.10833]
[1732022653553,0.108323,92316.0,92310.0,0.10833]
[1732022653800,0.108326,92314.0,92303.0,0.002]
[1732022654019,0.757543,92318.0,92308.0,0.108332]
[1732022654281,0.108327,92313.0,92307.0,0.108333]
[1732022654504,0.757543,92318.0,92305.0,0.216672]
[1732022654505,0.004,92314.0,92305.0,0.216672]
[1732022654727,0.004,92314.0,92304.0,0.216675]
[1732022654951,0.10833,92311.0,92294.0,0.32576055]
[1732022655179,0.004,92314.0,92294.0,0.32576055]
[1732022655180,0.004,92314.0,92302.0,0.1627251]
[1732022655387,0.108331,92310.0,92302.0,0.216679]
[1732022655633,0.108328,92312.0,92295.0,0.216696]
[1732022655830,0.216627,92325.0,92322.0,0.454373]
[1732022655831,0.208315,92323.0,92322.0,0.454373]
[1732022656293,0.5409,92326.0,92322.0,0.454373]
[1732022656947,0.5409,92326.0,92322.0,0.562688]
[1732022657146,0.5409,92326.0,92322.0,0.455373]
[1732022657147,0.013,92323.0,92322.0,0.455373]
[1732022657349,0.013,92323.0,92322.0,0.563689]
[1732022657730,0.108315,92323.0,92322.0,0.454373]
[1732022657937,0.108315,92323.0,92322.0,0.455373]
[1732022658294,0.10751972,92323.0,92322.0,0.455373]
[1732022658490,0.770524,92326.0,92323.0,0.108314]
[1732022658491,0.5539,92326.0,92323.0,0.108314]
[1732022658756,0.5539,92326.0,92325.0,0.108313]
[1732022659390,0.5409,92326.0,92325.0,0.108313]
[1732022659589,0.006,92323.0,92322.0,0.563688]
[1732022660285,0.5409,92326.0,92325.0,0.108313]
[1732022660503,0.5459,92326.0,92325.0,0.109313]
[1732022660701,0.005,92326.0,92325.0,0.109313]
[1732022660907,0.0017132,92328.0,92327.0,0.10831]
[1732022662034,0.0017132,92328.0,92324.0,0.1627251]
[1732022662254,0.0017132,92328.0,92327.0,0.10831]
[1732022662703,0.1,92336.0,92325.0,0.216626]
[1732022662704,0.03468067,92338.0,92325.0,0.216626]
[1732022662919,0.108302,92334.0,92326.0,0.216623]
[1732022663158,0.757479,92345.0,92329.0,0.108307]
[1732022663159,0.216593,92339.0,92329.0,0.108307]
[1732022663385,0.108303,92334.0,92329.0,0.108307]
[1732022663603,0.108299,92337.0,92326.0,0.216623]
[1732022663826,0.00338384,92339.0,92324.0,0.433256]
[1732022664045,0.03507832,92339.0,92325.0,0.216626]
[1732022664267,0.009,92339.0,92329.0,0.001]
[1732022664468,0.009,92339.0,92338.0,0.108297]
[1732022664902,0.491079,92346.0,92336.0,0.216598]
[1732022664903,0.03895119,92340.0,92339.0,0.108296]
[1732022665190,0.03556748,92340.0,92323.0,0.1627251]
[1732022665403,0.00338352,92344.0,92324.0,0.10906255]
[1732022665613,0.108293,92342.0,92337.0,0.108298]
[1732022665836,0.2745,92346.0,92324.0,0.10906255]
[1732022665837,0.14358199,92345.0,92328.0,0.758166]
[1732022666067,0.03529299,92345.0,92338.0,0.108297]
[1732022666248,0.11167447,92344.0,92328.0,0.216619]
[1732022666473,0.11167447,92344.0,92341.0,0.108293]
[1732022666474,0.00338347,92344.0,92341.0,0.108293]
[1732022666669,0.00338347,92344.0,92333.0,0.1627251]
[1732022666670,0.00338347,92343.0,92334.0,0.216604]
[1732022666830,0.00338347,92342.0,92339.0,0.108295]
[1732022667035,0.108292,92343.0,92337.0,0.108298]
[1732022667263,0.009,92339.0,92338.0,0.001]
[1732022667521,0.108292,92343.0,92338.0,0.108297]
[1732022667949,0.008,92342.0,92338.0,0.108297]
[1732022668358,0.108292,92343.0,92338.0,0.108297]
[1732022668619,0.10829,92345.0,92333.0,0.1627251]
[1732022668848,0.007,92343.0,92337.0,0.108298]
[1732022669047,0.115292,92343.0,92334.0,0.324906]
[1732022669228,0.115292,92343.0,92336.0,0.108298]
[1732022669429,0.115292,92343.0,92337.0,0.108297]
[1732022669631,0.007,92343.0,92338.0,0.108297]
[1732022669840,0.007,92343.0,92333.0,0.1627251]
[1732022669841,0.108294,92341.0,92333.0,0.1627251]
[1732022670073,0.108294,92341.0,92335.0,0.1083]
[1732022670306,0.52594166,92346.0,92337.0,0.108298]
[1732022670307,0.108291,92344.0,92337.0,0.108298]
[1732022670524,0.218579,92345.0,92335.0,0.216602]
[1732022670728,0.00338338,92344.0,92335.0,0.216602]
[1732022670946,0.218579,92345.0,92335.0,0.216602]
[1732022670947,0.00338338,92343.0,92335.0,0.216602]
[1732022671157,0.00338338,92343.0,92324.0,0.32768855]
[1732022671158,0.002,92341.0,92324.0,0.11106255]
[1732022671364,0.002,92341.0,92326.0,0.216623]
[1732022671601,0.002,92341.0,92336.0,0.108299]
[1732022671811,0.30936366,92346.0,92324.0,0.11106255]
[1732022672022,0.004,92344.0,92343.0,0.108291]
[1732022672232,0.00738341,92344.0,92343.0,0.108291]
[1732022672459,0.00738341,92344.0,92341.0,0.108293]
[1732022672684,0.00338341,92343.0,92342.0,0.108293]
[1732022673380,0.00338333,92343.0,92342.0,0.108293]
[1732022673969,0.0004,92349.0,92333.0,0.002]
[1732022674169,0.00338316,92348.0,92346.0,0.108287]
[1732022674374,0.00338316,92347.0,92344.0,0.108289]
[1732022674570,0.00338316,92346.0,92344.0,0.108289]
[1732022674791,0.00338316,92345.0,92344.0,0.108289]
[1732022675191,0.00338316,92345.0,92336.0,0.2166]
[1732022675351,0.00338316,92344.0,92339.0,0.108296]
[1732022675756,0.00338316,92343.0,92336.0,0.216599]
[1732022675956,0.0004,92349.0,92336.0,0.216599]
[1732022675957,0.108685,92349.0,92343.0,0.10829]
[1732022676162,0.00338309,92348.0,92343.0,0.108291]
[1732022676523,0.00338309,92347.0,92342.0,0.216586]
[1732022676981,0.0017124,92343.0,92342.0,0.324878]
[1732022677191,0.00509549,92343.0,92342.0,0.108292]
[1732022677563,0.0004,92349.0,92342.0,0.108292]
[1732022677723,0.0004,92349.0,92342.0,0.216584]
[1732022677941,0.108685,92349.0,92343.0,0.108291]
[1732022678152,0.21697,92349.0,92340.0,0.002]
[1732022678428,0.108287,92347.0,92340.0,0.002]
[1732022678612,0.0218017,92349.0,92340.0,0.002]
[1732022679021,0.0094,92349.0,92342.0,0.108293]
[1732022679228,0.0094,92349.0,92343.0,0.10829]
[1732022679441,0.0094,92349.0,92342.0,0.216586]
[1732022679800,0.0094,92349.0,92346.0,0.216576]
[1732022680007,0.0094,92349.0,92348.0,0.108286]
[1732022680619,0.0004,92349.0,92348.0,0.088286]
[1732022681469,0.0094,92349.0,92348.0,0.088286]
[1732022681909,0.0004,92349.0,92348.0,0.088286]
[1732022682091,0.0014,92349.0,92348.0,0.088286]
[1732022682319,0.00144,92349.0,92348.0,0.088286]
[1732022683461,0.0159503,92349.0,92348.0,0.088286]
[1732022685697,0.0159503,92349.0,92334.0,0.0791]
[1732022685906,0.0159503,92349.0,92335.0,0.27178765]
[1732022685907,0.108287,92347.0,92335.0,0.27178765]
[1732022686111,0.0159503,92349.0,92339.0,0.108296]
[1732022686366,0.216572,92348.0,92334.0,0.0791]
[1732022686570,0.216585,92343.0,92335.0,0.2710261]
[1732022686781,0.108297,92339.0,92335.0,0.1627251]
[1732022686968,0.0149503,92349.0,92335.0,0.1627251]
[1732022687218,0.0149503,92349.0,92335.0,0.216602]
[1732022687427,0.108286,92348.0,92337.0,0.108298]
[1732022687638,0.216572,92348.0,92334.0,0.1627251]
[1732022687837,0.108293,92342.0,92334.0,0.2710261]
[1732022688058,0.004,92343.0,92334.0,0.1627251]
[1732022688236,0.2315203,92349.0,92334.0,0.2710271]
[1732022688237,0.108293,92342.0,92334.0,0.2710271]
[1732022688473,0.0145103,92344.0,92334.0,0.1627251]
[1732022688684,0.108296,92340.0,92332.0,0.108304]
[1732022688838,0.108296,92340.0,92334.0,0.000856]
[1732022688839,0.108295,92340.0,92334.0,0.000856]
[1732022689014,0.108294,92341.0,92334.0,0.000856]
[1732022689224,0.218295,92343.0,92334.0,0.000856]
[1732022689466,0.108294,92342.0,92335.0,0.108301]
[1732022689711,0.216586,92342.0,92334.0,0.000856]
[1732022689899,0.108298,92338.0,92334.0,0.000856]
[1732022690109,0.108301,92335.0,92334.0,0.000856]
[1732022690247,0.23435183,92335.0,92334.0,0.000856]
[1732022690473,0.23480833,92335.0,92334.0,0.000856]
[1732022690692,0.23480833,92335.0,92334.0,0.002856]
[1732022690693,0.0004565,92335.0,92334.0,0.002856]
[1732022691175,0.0004565,92335.0,92334.0,0.000856]
[1732022691398,0.0004565,92335.0,92334.0,0.110158]
[1732022691607,0.0114565,92335.0,92334.0,0.110158]
[1732022692068,0.0114565,92335.0,92334.0,0.187358]
[1732022692321,0.0114565,92335.0,92334.0,0.30642055]
[1732022692555,0.0114565,92335.0,92334.0,0.29442055]
[1732022692772,0.108725,92349.0,92343.0,0.108291]
[1732022693027,0.108725,92349.0,92334.0,0.077056]
[1732022693028,0.03531623,92348.0,92334.0,0.076056]
[1732022693240,0.00044,92349.0,92334.0,0.076056]
[1732022693241,0.00044,92349.0,92334.0,0.000856]
[1732022693447,0.113301,92335.0,92334.0,0.000856]
[1732022693628,0.237501,92335.0,92334.0,0.000856]
[1732022693865,0.153401,92335.0,92334.0,0.000856]
[1732022694073,0.108301,92335.0,92334.0,0.000856]
[1732022694279,0.145,92348.0,92334.0,0.000856]
[1732022694487,0.10829,92345.0,92335.0,0.216602]
[1732022694694,0.10829,92345.0,92334.0,0.000856]
[1732022694695,0.10829,92345.0,92337.0,0.108297]
[1732022694911,0.011,92335.0,92334.0,0.001856]
[1732022695142,0.011,92335.0,92334.0,0.110158]
[1732022696227,0.108287,92347.0,92338.0,0.108296]
[1732022696455,0.00044,92349.0,92338.0,0.108296]
[1732022696681,0.216576,92346.0,92335.0,0.006]
[1732022696950,0.216576,92346.0,92336.0,0.108299]
[1732022696951,0.324864,92346.0,92336.0,0.108299]
[1732022697175,0.00044,92349.0,92334.0,0.011856]
[1732022697409,0.433148,92347.0,92334.0,0.011856]
[1732022697628,0.00044,92349.0,92334.0,0.000856]
[1732022697848,0.108294,92341.0,92334.0,0.000856]
[1732022698077,0.00044,92349.0,92335.0,0.01]
[1732022698297,0.108298,92338.0,92335.0,0.01]
[1732022698518,0.00044,92349.0,92335.0,0.01]
[1732022698519,0.216574,92347.0,92335.0,0.01]
[1732022698739,0.108298,92338.0,92335.0,0.01]
[1732022698963,0.216574,92347.0,92335.0,0.01]
[1732022699185,0.108298,92338.0,92335.0,0.01]
[1732022699404,0.1083,92336.0,92335.0,0.01]
[1732022699646,0.1033,92336.0,92334.0,0.000856]
[1732022699855,0.12605083,92353.0,92334.0,0.000856]
[1732022700074,0.226545,92360.0,92335.0,0.108301]
[1732022700075,0.108294,92342.0,92335.0,0.108301]
[1732022700324,0.108294,92342.0,92334.0,0.004856]
[1732022700325,0.216572,92348.0,92334.0,0.004856]
[1732022700541,0.00044,92349.0,92334.0,0.000856]
[1732022700797,0.00044,92349.0,92339.0,0.108296]
[1732022701021,0.108289,92345.0,92335.0,0.216602]
[1732022701259,0.108289,92345.0,92339.0,0.108295]
[1732022701484,0.108289,92345.0,92335.0,0.216602]
[1732022701712,0.108289,92346.0,92339.0,0.108295]
[1732022701959,0.00044,92349.0,92339.0,0.108296]
[1732022701960,0.108289,92345.0,92339.0,0.108296]
[1732022702213,0.108289,92345.0,92335.0,0.0008559]
[1732022702214,0.0021518,92349.0,92335.0,0.0008559]
[1732022702475,0.0021518,92349.0,92336.0,0.1627251]
[1732022702686,0.0021518,92349.0,92337.0,0.296497]
[1732022702910,0.0021518,92349.0,92339.0,0.216593]
[1732022703146,0.1104368,92349.0,92343.0,0.10829]
[1732022703408,0.0021518,92349.0,92341.0,0.108293]
[1732022703643,0.0021518,92349.0,92337.0,0.0799]
[1732022703834,0.0021518,92349.0,92339.0,0.21644883]
[1732022704099,0.108286,92348.0,92343.0,0.108291]
[1732022704366,0.0021518,92349.0,92343.0,0.004]
[1732022704592,0.108286,92348.0,92343.0,0.004]
[1732022704818,0.0021518,92349.0,92342.0,0.108293]
[1732022705046,0.0021518,92349.0,92343.0,0.108291]
[1732022705482,0.108287,92347.0,92341.0,0.108294]
[1732022705709,0.216583,92344.0,92339.0,0.008]
[1732022705950,0.108291,92344.0,92339.0,0.116295]
[1732022706641,0.108286,92348.0,92342.0,0.108292]
[1732022706866,0.10829,92344.0,92343.0,0.004]
[1732022707151,0.216574,92347.0,92343.0,0.004]
[1732022707373,0.10829,92344.0,92343.0,0.004]
[1732022707610,0.216574,92347.0,92343.0,0.004]
[1732022707845,0.0021518,92349.0,92337.0,0.0799]
[1732022707846,0.216572,92348.0,92337.0,0.0799]
[1732022708094,0.0021518,92349.0,92339.0,0.005]
[1732022708304,0.108295,92340.0,92339.0,0.005]
[1732022709038,0.216576,92346.0,92339.0,0.005]
[1732022709263,0.0021518,92349.0,92339.0,0.005]
[1732022709264,0.108295,92340.0,92339.0,0.005]
[1732022709741,0.216572,92348.0,92335.0,0.0008559]
[1732022709742,0.216588,92341.0,92335.0,0.0008559]
[1732022709959,0.1083,92336.0,92335.0,0.0008559]
[1732022711566,0.1083,92336.0,92335.0,0.0018559]
[1732022712963,0.23435083,92336.0,92335.0,0.0018559]
[1732022713170,0.1083,92336.0,92335.0,0.0018559]
[1732022713888,0.14307319,92336.0,92335.0,0.0018559]
[1732022714141,0.03648519,92336.0,92335.0,0.0018559]
[1732022714338,0.14478519,92336.0,92335.0,0.0018559]
[1732022714562,0.03648519,92336.0,92335.0,0.0018559]
[1732022715071,0.14478519,92336.0,92335.0,0.0018559]
[1732022715745,0.001712,92336.0,92335.0,0.0018559]
[1732022716664,0.001712,92336.0,92335.0,0.1101569]
[1732022717778,0.001712,92336.0,92335.0,0.0018559]
[1732022718002,0.110012,92336.0,92335.0,0.0018559]
[1732022721667,0.110052,92336.0,92335.0,0.0018559]
[1732022722544,4e-05,92336.0,92335.0,0.0018559]
[1732022722834,0.10834,92336.0,92335.0,0.0018559]
[1732022725774,0.10834,92336.0,92299.0,0.1627251]
[1732022725775,0.01,92303.0,92299.0,0.1627251]
[1732022725993,0.0471,92307.0,92299.0,0.1627251]
[1732022725994,0.208342,92300.0,92299.0,0.1627251]
[1732022726254,0.208342,92300.0,92288.0,0.1627251]
[1732022726255,0.108355,92289.0,92288.0,0.1627251]
[1732022726467,0.108355,92289.0,92278.0,0.1627251]
[1732022726468,0.216731,92281.0,92278.0,0.1627251]
[1732022726668,0.108367,92279.0,92278.0,0.1627251]
[1732022726900,0.34276283,92289.0,92258.0,0.1627251]
[1732022726901,0.216737,92278.0,92258.0,0.1627251]
[1732022727120,0.108377,92270.0,92258.0,0.1627251]
[1732022727348,0.27178765,92287.0,92258.0,0.1627251]
[1732022727576,0.27178765,92287.0,92257.0,0.216783]
[1732022727795,0.216741,92276.0,92261.0,0.2176316]
[1732022728023,0.108373,92274.0,92263.0,0.108385]
[1732022728243,0.108374,92273.0,92264.0,0.108384]
[1732022728468,0.216728,92282.0,92262.0,0.108386]
[1732022728707,0.216728,92282.0,92263.0,0.108385]
[1732022728928,0.216746,92274.0,92263.0,0.00216749]
[1732022729201,0.108376,92271.0,92262.0,0.00216749]
[1732022729428,0.108376,92271.0,92269.0,0.0827]
[1732022729642,0.216728,92282.0,92269.0,0.0827]
[1732022729643,0.108377,92270.0,92269.0,0.0827]
[1732022730386,0.108377,92270.0,92269.0,0.002]
[1732022730635,0.1519783,92270.0,92269.0,0.002]
[1732022730838,0.0436013,92270.0,92269.0,0.002]
[1732022731074,0.216724,92283.0,92269.0,0.002]
[1732022731295,0.1627251,92285.0,92269.0,0.002]
[1732022731296,0.216722,92284.0,92269.0,0.002]
[1732022731511,0.108374,92273.0,92268.0,0.0831]
[1732022731784,0.325086,92283.0,92268.0,0.0831]
[1732022731995,0.216722,92284.0,92269.0,0.001]
[1732022732215,0.31601793,92285.0,92269.0,0.001]
[1732022732216,0.108376,92271.0,92269.0,0.001]
[1732022732433,0.108376,92271.0,92268.0,0.0831]
[1732022733495,0.108373,92274.0,92268.0,0.0831]
[1732022733768,0.04423028,92285.0,92268.0,0.0831]
[1732022734042,0.04423028,92285.0,92267.0,0.21676]
[1732022734043,0.1627251,92297.0,92293.0,0.0819]
[1732022734247,0.1627251,92297.0,92295.0,0.108347]
[1732022734463,0.1627251,92297.0,92282.0,0.216726]
[1732022734464,0.216696,92295.0,92277.0,0.0819]
[1732022734697,0.1627251,92297.0,92277.0,0.0819]
[1732022734698,0.12605083,92288.0,92277.0,0.0819]
[1732022734955,0.1627251,92297.0,92277.0,0.0819]
[1732022734956,0.108368,92278.0,92277.0,0.0819]
[1732022735195,0.12605083,92281.0,92259.0,0.04341454]
[1732022735196,0.12605083,92281.0,92266.0,0.0819]
[1732022735433,0.216746,92274.0,92266.0,0.0819]
[1732022735660,0.108379,92269.0,92266.0,0.0819]
[1732022735879,0.108365,92280.0,92268.0,0.216758]
[1732022736123,0.1637251,92278.0,92276.0,0.10837]
[1732022736347,0.1637251,92278.0,92277.0,0.108369]
[1732022736601,0.001,92278.0,92277.0,0.108369]
[1732022737494,0.10835,92294.0,92274.0,0.00216419]
[1732022737754,0.3794191,92297.0,92284.0,0.108361]
[1732022737755,0.1627251,92285.0,92284.0,0.108361]
[1732022737923,0.216703,92292.0,92284.0,0.108361]
[1732022738219,0.108355,92290.0,92284.0,0.108361]
[1732022738434,0.216703,92292.0,92284.0,0.10836]
[1732022738644,0.1627251,92297.0,92284.0,0.10836]
[1732022738645,0.216698,92294.0,92286.0,0.108357]
[1732022738904,0.216698,92294.0,92284.0,0.108361]
[1732022739142,0.216698,92294.0,92274.0,0.002]
[1732022739143,0.108356,92289.0,92274.0,0.002]
[1732022739351,0.108356,92289.0,92280.0,0.216729]
[1732022739561,0.216701,92293.0,92282.0,0.108362]
[1732022739772,0.1627251,92297.0,92278.0,0.216736]
[1732022739999,0.1627251,92297.0,92275.0,0.216742]
[1732022740244,0.10836,92285.0,92278.0,0.108367]
[1732022740493,0.001,92290.0,92281.0,0.1627251]
[1732022740711,0.001,92290.0,92289.0,0.108355]
[1732022741425,0.1627251,92299.0,92295.0,0.108347]
[1732022741725,0.1627251,92299.0,92296.0,0.108346]
[1732022741959,0.04443799,92302.0,92286.0,0.10906255]
[1732022742183,0.108343,92300.0,92293.0,0.10835]
[1732022742412,0.108343,92299.0,92293.0,0.10835]
[1732022742645,0.108348,92295.0,92286.0,0.10906255]
[1732022743111,0.12605083,92298.0,92284.0,0.0791]
[1732022743353,0.108349,92295.0,92284.0,0.0791]
[1732022743584,0.108345,92297.0,92285.0,0.108359]
[1732022743802,0.1627251,92297.0,92284.0,0.0791]
[1732022744247,0.216694,92296.0,92285.0,0.108359]
[1732022744473,0.216694,92296.0,92286.0,0.108358]
[1732022744687,0.1627251,92297.0,92284.0,0.0791]
[1732022745119,0.108351,92293.0,92286.0,0.108358]
[1732022745337,0.108351,92293.0,92287.0,0.108357]
[1732022745625,0.216698,92294.0,92286.0,0.002]
[1732022745840,0.216696,92295.0,92287.0,0.108357]
[1732022745841,0.108351,92292.0,92287.0,0.108357]
[1732022746119,0.108351,92292.0,92285.0,0.108359]
[1732022746332,0.216696,92295.0,92284.0,0.0791]
[1732022746578,0.1627251,92297.0,92284.0,0.0791]
[1732022746786,0.216694,92296.0,92284.0,0.0791]
[1732022747007,0.108356,92289.0,92284.0,0.0791]
[1732022747222,0.1627251,92297.0,92284.0,0.0791]
[1732022747436,0.216696,92295.0,92284.0,0.0791]
[1732022747656,0.1627251,92297.0,92284.0,0.0791]
[1732022748110,0.108354,92290.0,92284.0,0.18746]
[1732022748321,0.108354,92290.0,92284.0,0.0791]
[1732022748590,0.108351,92293.0,92286.0,0.108358]
[1732022748800,0.1627651,92298.0,92284.0,0.0801]
[1732022749255,4e-05,92298.0,92297.0,0.108345]
[1732022750845,4e-05,92298.0,92297.0,0.10972718]
[1732022751498,4e-05,92298.0,92297.0,0.108345]
[1732022751708,4e-05,92298.0,92297.0,0.11034548]
[1732022752181,4e-05,92298.0,92294.0,0.108348]
[1732022752418,4e-05,92298.0,92296.0,0.108346]
[1732022752620,4e-05,92298.0,92294.0,0.216698]
[1732022752621,0.1627251,92297.0,92284.0,0.0791]
[1732022752848,0.108357,92287.0,92284.0,0.0791]
[1732022753072,0.108351,92293.0,92284.0,0.29582]
[1732022753335,0.12605083,92297.0,92288.0,0.108355]
[1732022753336,0.216696,92295.0,92288.0,0.108355]
[1732022753599,0.10835,92293.0,92288.0,0.108355]
[1732022753815,0.10835,92293.0,92284.0,0.29582]
[1732022754042,0.108351,92293.0,92288.0,0.108356]
[1732022754290,0.108351,92293.0,92287.0,0.216715]
[1732022754554,0.216694,92296.0,92289.0,0.108354]
[1732022754555,0.10835,92294.0,92289.0,0.108354]
[1732022754791,0.10835,92293.0,92289.0,0.108354]
[1732022755016,0.108349,92294.0,92288.0,0.216712]
[1732022755262,0.108349,92294.0,92289.0,0.108354]
[1732022755704,0.216684,92300.0,92288.0,0.216712]
[1732022755919,0.216684,92300.0,92284.0,0.0791]
[1732022755920,0.216668,92307.0,92289.0,0.006]
[1732022756137,0.108339,92303.0,92297.0,0.108344]
[1732022756398,0.108339,92303.0,92290.0,0.216708]
[1732022756399,0.108339,92303.0,92298.0,0.108344]
[1732022756602,0.108339,92303.0,92284.0,0.0791]
[1732022756603,0.58460613,92308.0,92293.0,0.1627251]
[1732022756823,0.108325,92315.0,92294.0,0.10906255]
[1732022757073,0.108323,92316.0,92295.0,0.216696]
[1732022757321,0.1627251,92317.0,92295.0,0.216696]
[1732022757322,0.2710471,92317.0,92295.0,0.10906255]
[1732022757576,0.2710471,92317.0,92247.0,0.0967101]
[1732022757577,0.12605083,92300.0,92288.0,0.005]
[1732022757799,0.12605083,92300.0,92289.0,0.1627251]
[1732022758251,0.12605083,92300.0,92286.0,0.0008559]
[1732022758468,0.0491,92309.0,92286.0,0.0008559]
[1732022758469,0.12605083,92307.0,92286.0,0.0008559]
[1732022758685,0.108349,92294.0,92286.0,0.1092139]
[1732022758903,0.108349,92294.0,92287.0,0.108357]
[1732022759119,0.1627251,92305.0,92286.0,0.0008559]
[1732022759336,0.108348,92295.0,92288.0,0.108355]
[1732022759567,0.216691,92297.0,92286.0,0.0068559]
[1732022759784,0.108349,92294.0,92286.0,0.0068559]
[1732022760011,0.216675,92304.0,92293.0,0.108349]
[1732022760231,0.108341,92301.0,92293.0,0.10835]
[1732022760453,0.108341,92301.0,92294.0,0.108348]
[1732022760667,0.1627251,92304.0,92287.0,0.006]
[1732022760970,0.216694,92296.0,92287.0,0.006]
[1732022761178,0.108349,92294.0,92287.0,0.006]
[1732022761404,0.108349,92294.0,92287.0,0.114357]
[1732022761621,0.108349,92294.0,92287.0,0.108357]
[1732022762473,0.3794011,92304.0,92286.0,0.0008559]
[1732022762474,0.216677,92303.0,92286.0,0.0008559]
[1732022762690,0.3794011,92304.0,92287.0,0.006]
[1732022762691,0.1627251,92304.0,92287.0,0.006]
[1732022762899,0.108347,92296.0,92289.0,0.108354]
[1732022763348,0.1627251,92304.0,92286.0,0.0008559]
[1732022763571,0.108357,92287.0,92286.0,0.0008559]
[1732022763806,0.216711,92289.0,92286.0,0.0008559]
[1732022763807,0.108355,92289.0,92286.0,0.0008559]
[1732022764048,0.108357,92287.0,92286.0,0.0008559]
[1732022764943,0.21671,92290.0,92286.0,0.0008559]
[1732022764944,0.108354,92290.0,92286.0,0.0008559]
[1732022765155,0.12605083,92306.0,92286.0,0.0068559]
[1732022765379,0.216684,92300.0,92286.0,0.0068559]
[1732022765592,0.12605083,92306.0,92286.0,0.0068559]
[1732022765803,0.12605083,92306.0,92286.0,0.0008559]
[1732022766019,0.04472637,92303.0,92287.0,0.1627251]
[1732022766478,0.3793971,92306.0,92286.0,0.11591845]
[1732022766479,0.1627251,92306.0,92289.0,0.21671]
[1732022766693,0.108337,92305.0,92291.0,0.325057]
[1732022766915,0.108348,92295.0,92288.0,0.108355]
[1732022767133,0.28877593,92306.0,92286.0,0.0068559]
[1732022767134,0.28877593,92306.0,92286.0,0.11591845]
[1732022767413,0.108352,92292.0,92286.0,0.0068559]
[1732022767629,0.216694,92296.0,92286.0,0.0068559]
[1732022767838,0.108348,92295.0,92286.0,0.0068559]
[1732022768082,0.216698,92294.0,92286.0,0.0068559]
[1732022768298,0.216705,92291.0,92286.0,0.0068559]
[1732022768518,0.28877593,92306.0,92286.0,0.0068559]
[1732022768519,0.108344,92298.0,92286.0,0.0068559]
[1732022768811,0.216687,92299.0,92286.0,0.0068559]
[1732022768812,0.216687,92299.0,92286.0,0.0008559]
[1732022769049,0.216687,92299.0,92287.0,0.006]
[1732022769514,0.216687,92299.0,92286.0,0.0008559]
[1732022769762,0.64996235,92305.0,92286.0,0.0008559]
[1732022769763,0.108357,92287.0,92286.0,0.0008559]
[1732022770033,0.108357,92287.0,92286.0,0.0068559]
[1732022770500,0.108357,92287.0,92286.0,0.0008559]
[1732022770721,0.108357,92287.0,92286.0,0.0068559]
[1732022772409,0.09650851,92298.0,92286.0,0.0068559]
[1732022772630,0.1627251,92296.0,92286.0,0.0008559]
[1732022772861,0.108355,92289.0,92286.0,0.0068559]
[1732022773128,0.108355,92289.0,92286.0,9e-07]
[1732022773129,0.35347038,92287.0,92286.0,9e-07]
[1732022773404,0.35347038,92287.0,92271.0,0.002]
[1732022773405,0.01,92278.0,92271.0,0.002]
[1732022773658,0.01,92278.0,92260.0,0.1627251]